fUSD/lending_fUSD_20251101
["ID","MTS","AMOUNT","RATE_DAILY","PERIOD"]
[392815988,1761989110956,-172.11552105,0.00013699,2]
[392815990,1761989113465,150.0,0.00013488,2]
[392815991,1761989113634,150.0,0.00013488,2]
[392815992,1761989113945,-187.18743939,0.00013699,2]
[392815993,1761989114865,-217.29500363,0.00013699,2]
[392815994,1761989114887,-97.32256014,0.00013699,2]
[392815995,1761989115064,500.0,0.00030136,120]
[392815996,1761989115310,500.0,0.0003041,120]
[392815997,1761989115588,500.0,0.00030684,120]
[392815998,1761989115832,500.0,0.00030958,120]
[392815999,1761989116171,159.69177514,0.00031232,120]
[392816000,1761989117271,-202.67743986,0.00013699,2]
[392816001,1761989117295,-208.38015668,0.000137,2]
[392816002,1761989119771,-250.0,0.000137,2]
[392816003,1761989120899,-250.0,0.000137,2]
[392816004,1761989126403,-250.0,0.000137,2]
[392816007,1761989193871,500.0,0.00030136,120]
[392816008,1761989194113,500.0,0.0003041,120]
[392816009,1761989194359,393.74461474,0.00030684,120]
[392816010,1761989222821,500.0,0.00030136,120]
[392816011,1761989223059,500.0,0.0003041,120]
[392816012,1761989223288,500.0,0.00030684,120]
[392816013,1761989223530,500.0,0.00030958,120]
[392816014,1761989223778,500.0,0.00031232,120]
[392816015,1761989224025,500.0,0.00031506,120]
[392816018,1761989252127,500.01,0.000315,120]
[392816020,1761989302522,1251.0,0.000315,120]
[392816023,1761989313300,6255.62,0.00013539,2]
[392816024,1761989314119,467.0,0.000137,3]
[392816027,1761989323689,-416.4052325,0.00013699,2]
[392816028,1761989328612,-252.00708973,0.00013699,2]
[392816029,1761989328941,-397.99291027,0.00013699,2]
[392816030,1761989330681,500.0,0.00013506,2]
[392816031,1761989333346,-274.31085357,0.00013699,2]
[392816032,1761989333372,-146.95274059,0.00013774,2]
[392816034,1761989360996,17967.99,0.00013536,2]
[392816062,1761989431639,-179.31859766,0.00013774,2]
[392816063,1761989431649,-692.76,0.00013876,2]
[392816064,1761989431659,-172.37,0.00013953,2]
[392816065,1761989431668,-263.11,0.00013986,2]
[392816066,1761989431677,-1200.0,0.00013989,2]
[392816067,1761989431687,-1198.0,0.00013989,2]
[392816068,1761989431697,-300.0,0.00013989,2]
[392816069,1761989431709,-300.0,0.00013989,2]
[392816070,1761989431718,-4332.15257165,0.0001399,2]
[392816071,1761989431729,-4389.68900802,0.0001399,2]
[392816072,1761989431739,-451.81,0.00014,2]
[392816073,1761989431749,-500.0,0.00014,2]
[392816074,1761989431759,-500.0,0.00014,2]
[392816075,1761989431768,-244.04,0.00014,2]
[392816076,1761989431777,-500.0,0.00014,2]
[392816077,1761989431787,-3910.23,0.0001403,2]
[392816078,1761989431796,-200.0,0.00014049,2]
[392816079,1761989431806,-172.37,0.00014208,2]
[392816080,1761989431815,-248.71531821,0.00014222,2]
[392816081,1761989431825,-150.0,0.00014237,2]
[392816082,1761989431835,-150.0,0.00014237,2]
[392816083,1761989431844,-1031.39,0.000143,2]
[392816084,1761989431854,-932.05,0.000143,2]
[392816085,1761989431864,-150.0,0.000143,2]
[392816086,1761989431873,-150.0,0.000143,2]
[392816087,1761989431883,-151.19,0.00014378,2]
[392816088,1761989431893,-150.0,0.00014399,2]
[392816089,1761989431902,-476.65,0.000144,2]
[392816090,1761989431912,-150.0,0.000144,2]
[392816091,1761989431921,-952.6,0.000144,2]
[392816092,1761989431930,-829.98,0.000144,2]
[392816093,1761989431939,-953.1,0.000144,2]
[392816094,1761989431948,-207.86,0.000144,2]
[392816095,1761989431958,-697.83,0.000144,2]
[392816096,1761989431967,-172.37,0.00014463,2]
[392816097,1761989431977,-166.04873833,0.00014473,2]
[392816098,1761989431987,-150.0,0.00014478,2]
[392816099,1761989431996,-150.0,0.00014478,2]
[392816100,1761989432006,-500.0,0.00014554,2]
[392816101,1761989432016,-500.0,0.00014554,2]
[392816102,1761989432026,-500.0,0.00014554,2]
[392816103,1761989432035,-500.0,0.00014554,2]
[392816104,1761989432045,-500.0,0.00014554,2]
[392816105,1761989432054,-500.0,0.00014554,2]
[392816106,1761989432064,-500.0,0.00014554,2]
[392816107,1761989432073,-500.0,0.00014554,2]
[392816108,1761989432082,-500.0,0.00014554,2]
[392816109,1761989432091,-500.0,0.00014554,2]
[392816110,1761989432100,-500.0,0.00014554,2]
[392816113,1761989432323,-500.0,0.00014554,2]
[392816114,1761989432333,-488.87243087,0.00014554,2]
[392816115,1761989432342,-500.0,0.00014554,2]
[392816116,1761989432352,-500.0,0.00014554,2]
[392816117,1761989432361,-500.0,0.00014554,2]
[392816118,1761989432370,-5494.93048166,0.00014555,2]
[392816119,1761989432382,-2388.2175933,0.00014555,2]
[392816120,1761989432393,-263386.88297139,0.00014555,2]
[392816121,1761989432404,-67044.25463999,0.00014555,2]
[392816122,1761989432415,-7804.11330473,0.00014555,2]
[392816123,1761989432427,-933.95,0.00014555,2]
[392816125,1761989432437,-5517.3265029,0.00014555,2]
[392816127,1761989432448,-11634.77164738,0.00014555,2]
[392816129,1761989432459,-1023.11758796,0.00014555,2]
[392816141,1761989437776,-193289.88978489,0.00014555,2]
[392816142,1761989437785,-501.49023745,0.00014573,2]
[392816143,1761989437795,-500.0,0.00014573,2]
[392816144,1761989437804,-500.0,0.00014573,2]
[392816145,1761989437813,-500.0,0.00014573,2]
[392816146,1761989437823,-500.0,0.00014573,2]
[392816147,1761989437833,-485.0,0.0001458,2]
[392816148,1761989437842,-221.6410156,0.00014595,2]
[392816149,1761989437851,-2538.49,0.000146,2]
[392816150,1761989437861,-500.0,0.00014673,2]
[392816151,1761989437871,-573.99399607,0.00014673,2]
[392816152,1761989437880,-500.0,0.00014673,2]
[392816153,1761989437890,-166.04873831,0.00014687,2]
[392816154,1761989437901,-151.0,0.00014691,2]
[392816155,1761989437911,-151.0,0.00014691,2]
[392816156,1761989437921,-151.0,0.00014691,2]
[392816157,1761989437930,-151.0,0.00014691,2]
[392816158,1761989437940,-151.0,0.00014691,2]
[392816159,1761989437950,-151.0,0.00014691,2]
[392816160,1761989437959,-151.0,0.00014691,2]
[392816161,1761989437969,-151.0,0.00014691,2]
[392816162,1761989437978,-151.0,0.00014691,2]
[392816163,1761989437987,-151.0,0.00014691,2]
[392816164,1761989437996,-151.0,0.00014691,2]
[392816165,1761989438005,-249.33950632,0.00014691,2]
[392816166,1761989438015,-151.0,0.00014691,2]
[392816167,1761989438025,-151.0,0.00014691,2]
[392816168,1761989438034,-151.0,0.00014691,2]
[392816169,1761989438043,-151.0,0.00014691,2]
[392816170,1761989438053,-151.0,0.00014691,2]
[392816171,1761989438062,-151.0,0.00014691,2]
[392816172,1761989438072,-151.0,0.00014691,2]
[392816173,1761989438082,-514.84070869,0.00014691,2]
[392816174,1761989438091,-248.26379263,0.00014691,2]
[392816175,1761989438100,-322.6107,0.00014691,2]
[392816176,1761989438110,-793.02052039,0.00014694,2]
[392816177,1761989438121,-151.0,0.00014697,2]
[392816178,1761989438130,-500.0,0.00014699,2]
[392816179,1761989438140,-520.33595072,0.00014699,2]
[392816180,1761989438150,-588.39813314,0.00014699,2]
[392816181,1761989438159,-620.0631687,0.00014699,2]
[392816182,1761989438169,-353716.95926774,0.000147,2]
[392816183,1761989438178,-476.55,0.000147,2]
[392816184,1761989438188,-20000.0,0.000147,2]
[392816185,1761989438198,-168.0,0.00014715,2]
[392816186,1761989438208,-893.09678367,0.00014722,2]
[392816187,1761989438218,-485.0,0.00014744,2]
[392816188,1761989438228,-14393.65,0.0001475,2]
[392816189,1761989438237,-485.0,0.0001479,2]
[392816190,1761989438247,-150.0,0.000148,2]
[392816191,1761989438256,-41172.04031068,0.0001485,2]
[392816192,1761989438265,-500.75904731,0.00014873,2]
[392816193,1761989438275,-200.0,0.0001488,2]
[392816194,1761989438284,-176.63,0.000149,2]
[392816195,1761989438294,-176.7,0.000149,2]
[392816196,1761989438303,-14972.092,0.000149,2]
[392816197,1761989438312,-150.0,0.000149,2]
[392816198,1761989438321,-168.88,0.000149,2]
[392816199,1761989438331,-322.83,0.000149,2]
[392816200,1761989438341,-292.58,0.000149,2]
[392816201,1761989438350,-697.96,0.000149,2]
[392816202,1761989438359,-176.74,0.000149,2]
[392816203,1761989438369,-1252.42,0.000149,2]
[392816204,1761989438378,-1394.64,0.000149,2]
[392816205,1761989438388,-1203.83,0.000149,2]
[392816206,1761989438397,-697.96,0.000149,2]
[392816207,1761989438406,-166.04873831,0.000149,2]
[392816208,1761989438415,-151.0,0.00014963,2]
[392816209,1761989438425,-469.92835077,0.00014967,2]
[392816210,1761989438434,-151.0,0.00014967,2]
[392816211,1761989438443,-151.0,0.00014968,2]
[392816212,1761989438452,-746.11392855,0.00014968,2]
[392816213,1761989438461,-151.0,0.00014969,2]
[392816214,1761989438470,-263.78589692,0.0001497,2]
[392816215,1761989438479,-203.5904631,0.00014973,2]
[392816216,1761989438488,-176.74,0.00014976,2]
[392816217,1761989438497,-175.8296513,0.00014979,2]
[392816218,1761989438507,-401.10956542,0.00014979,2]
[392816219,1761989438516,-334.6407318,0.00014979,2]
[392816220,1761989438526,-500.0,0.00014979,2]
[392816221,1761989438536,-500.0,0.00014979,2]
[392816222,1761989438545,-546.54184307,0.00014979,2]
[392816223,1761989438554,-138732.34851419,0.0001498,2]
[392816224,1761989438563,-150.0,0.00014986,2]
[392816225,1761989438573,-150.0,0.00014986,2]
[392816226,1761989438582,-150.0,0.00014986,2]
[392816227,1761989438590,-151.0,0.0001499,2]
[392816228,1761989438599,-291.27921974,0.0001499,2]
[392816229,1761989438608,-1106.75,0.00014991,2]
[392816230,1761989438619,-4542.8350864,0.00014991,2]
[392816231,1761989438628,-32754.2876031,0.00014993,2]
[392816232,1761989438637,-151.0,0.00014997,2]
[392816233,1761989438646,-500.0,0.00014999,2]
[392816234,1761989438655,-516.00192321,0.00014999,2]
[392816235,1761989438665,-211.37583249,0.00014999,2]
[392816236,1761989438674,-150.0,0.00014999,2]
[392816237,1761989438683,-150.0,0.00014999,2]
[392816238,1761989438693,-500.0,0.00014999,2]
[392816239,1761989438705,-150.0,0.00014999,2]
[392816240,1761989438714,-150.0,0.00014999,2]
[392816241,1761989438724,-500.0,0.00014999,2]
[392816242,1761989438733,-150.0,0.00014999,2]
[392816243,1761989438743,-151.97796274,0.00014999,2]
[392816244,1761989438752,-150.0,0.00014999,2]
[392816245,1761989438761,-150.0,0.00014999,2]
[392816246,1761989438770,-150.0,0.00014999,2]
[392816247,1761989438781,-150.0,0.00014999,2]
[392816248,1761989438790,-150.0,0.00014999,2]
[392816249,1761989438799,-500.0,0.00014999,2]
[392816250,1761989438808,-150.0,0.00014999,2]
[392816251,1761989438817,-150.0,0.00014999,2]
[392816252,1761989438826,-150.0,0.00014999,2]
[392816253,1761989438835,-150.0,0.00014999,2]
[392816254,1761989438845,-150.0,0.00014999,2]
[392816255,1761989438854,-150.0,0.00014999,2]
[392816256,1761989438863,-150.0,0.00014999,2]
[392816257,1761989438872,-150.0,0.00014999,2]
[392816258,1761989438882,-150.0,0.00014999,2]
[392816259,1761989438891,-150.0,0.00014999,2]
[392816260,1761989438901,-150.0,0.00014999,2]
[392816261,1761989438910,-150.0,0.00014999,2]
[392816262,1761989438925,-150.0,0.00014999,2]
[392816263,1761989438938,-150.0,0.00014999,2]
[392816264,1761989438948,-150.0,0.00014999,2]
[392816265,1761989438958,-150.0,0.00014999,2]
[392816266,1761989438967,-150.0,0.00014999,2]
[392816267,1761989438977,-500.0,0.00014999,2]
[392816268,1761989438986,-500.0,0.00014999,2]
[392816269,1761989438996,-666.0,0.00014999,2]
[392816270,1761989439005,-3779.0,0.00015,2]
[392816271,1761989439015,-1433670.79149512,0.00015,2]
[392816272,1761989439024,-2027.95723379,0.00015,2]
[392816273,1761989439034,-7894.68518592,0.00015,2]
[392816274,1761989439044,-1107818.9612895,0.00015,2]
[392816275,1761989439058,-255.73732106,0.00015,2]
[392816276,1761989439921,-1.6e-07,0.00015,2]
[392816277,1761989439936,-2544.40771194,0.00015,2]
[392816449,1761989442654,-194.08,0.000144,2]
[392816450,1761989442664,-151.0,0.00014967,2]
[392816451,1761989442673,-281.04397403,0.00015,2]
[392816577,1761989445816,-974.49568099,0.00015,2]
[392816578,1761989445828,-314.46249809,0.00015,2]
[392816579,1761989445925,-11094.0,0.00015,2]
[392816580,1761989445936,-1522.426785,0.00015,2]
[392816581,1761989445947,-841.5705,0.00015,2]
[392816582,1761989466801,500.0,0.00030136,120]
[392816583,1761989467039,500.0,0.0003041,120]
[392816584,1761989467278,500.0,0.00030684,120]
[392816585,1761989467514,500.0,0.00030958,120]
[392816586,1761989467759,500.0,0.00031232,120]
[392816587,1761989468065,500.0,0.00031506,120]
[392816588,1761989595402,999.0,0.00013923,3]
[392816589,1761989603339,-500.0,0.00014454,2]
[392816590,1761989603363,-150.0,0.00014454,2]
[392816591,1761989603384,-300.0,0.00014454,2]
[392816592,1761989603410,-195.0,0.00014454,2]
[392816593,1761989603433,-565.37862135,0.00014454,2]
[392816594,1761989603456,-2789.62137865,0.00014455,2]
[392816596,1761989722578,500.0,0.00030136,120]
[392816597,1761989722882,500.0,0.0003041,120]
[392816598,1761989723121,500.0,0.00030684,120]
[392816599,1761989723352,500.0,0.00030958,120]
[392816600,1761989723592,500.0,0.00031232,120]
[392816601,1761989723821,314.32408069,0.00031506,120]
[392816606,1761989888065,500.0,0.00030136,120]
[392816607,1761989888329,500.0,0.0003041,120]
[392816608,1761989888552,500.0,0.00030684,120]
[392816609,1761989888899,500.0,0.00030958,120]
[392816610,1761989889142,500.0,0.00031232,120]
[392816611,1761989889362,500.0,0.00031506,120]
[392816617,1761990306693,266.61663532,0.00013488,2]
[392816618,1761990306795,170.1521678,0.00013488,2]
[392816619,1761990313616,150.0,0.00013488,2]
[392816620,1761990326946,185.4081276,0.00013488,2]
[392816621,1761990365945,-218.69217989,0.00013772,2]
[392816622,1761990374379,-195.0,0.00013772,2]
[392816624,1761990378298,-488.21016317,0.00013772,2]
[392816625,1761990380200,-331.28599044,0.00013772,2]
[392816627,1761990382093,-443.26531884,0.00013772,2]
[392816628,1761990384005,-244.84360986,0.00013772,2]
[392816631,1761990418608,-900.0,0.00013599,2]
[392816633,1761990421434,-166.66666666,0.00013599,2]
[392816634,1761990422068,-500.0,0.00013599,2]
[392816635,1761990424760,-460.68513716,0.00013599,2]
[392816636,1761990428790,-202.08682033,0.00013599,2]
[392816637,1761990433677,-205.01292417,0.00013599,2]
[392816638,1761990437648,-175.47370159,0.00013599,2]
[392816639,1761990440062,-172.69963692,0.00013599,2]
[392816640,1761990445389,-299.50036308,0.00013599,2]
[392816641,1761990448024,-188.94119927,0.00013599,2]
[392816642,1761990455203,-152.35,0.00013599,2]
[392816643,1761990455313,-293.90561025,0.00013599,2]
[392816644,1761990464199,-333.81492297,0.00013566,2]
[392816645,1761990470315,-162.5917353,0.00013566,2]
[392816646,1761990470458,-162.5917353,0.00013566,2]
[392816647,1761990473072,-51.28160643,0.00013566,2]
[392816648,1761990473094,-101.06660983,0.00013599,2]
[392816649,1761990477739,-933.22554085,0.00013599,2]
[392816650,1761990477969,-173.18554085,0.00013599,2]
[392816651,1761990479856,-313.0442342,0.00013599,2]
[392816652,1761990484687,-353.29253733,0.00013599,2]
[392816653,1761990493657,-1974.28418112,0.00013599,2]
[392816654,1761990496230,-277.21531422,0.00013599,2]
[392816655,1761990502060,-250.35868063,0.00013599,2]
[392816656,1761990506162,-282.3436518,0.00013599,2]
[392816657,1761990515282,-233.52338847,0.00013599,2]
[392816658,1761990518225,-200.0,0.00013599,2]
[392816659,1761990518296,901.296506,0.0001353,2]
[392816660,1761990519527,-448.556539,0.00013599,2]
[392816661,1761990525422,-700.0,0.00013599,2]
[392816662,1761990529369,-399.08,0.00013599,2]
[392816663,1761990538647,-557.93658554,0.00013599,2]
[392816664,1761990543001,-555.68611935,0.00013599,2]
[392816665,1761990549191,-889.99995888,0.00013599,2]
[392816666,1761990552358,-217.6563482,0.00013599,2]
[392816667,1761990560314,-510.51236402,0.00013599,2]
[392816673,1761990565943,-378.96662554,0.00013599,2]
[392816674,1761990567388,-183.57032361,0.00013599,2]
[392816675,1761990569616,-187.63898956,0.00013599,2]
[392816676,1761990572797,-300.0,0.00013599,2]
[392816677,1761990583610,-159.4806203,0.00013599,2]
[392816678,1761990589604,-209.21466666,0.00013599,2]
[392816679,1761990590734,-317.21109613,0.00013599,2]
[392816680,1761990597719,-349.44890387,0.00013599,2]
[392816681,1761990599924,-840.5193797,0.00013599,2]
[392816682,1761990603759,-274.12533334,0.00013599,2]
[392816683,1761990614178,-205.16905536,0.00013599,2]
[392816684,1761990617384,-206.67756474,0.00013599,2]
[392816685,1761990619915,-270.65493324,0.00013599,2]
[392816686,1761990620812,-510.85695988,0.00013599,2]
[392816687,1761990620858,-4518.98410565,0.00013599,2]
[392816688,1761990620882,-962.0417887,0.00013599,2]
[392816689,1761990621494,-500.0,0.00013672,2]
[392816690,1761990621525,-1200.0,0.00013698,2]
[392816691,1761990621555,-172.7,0.00013699,2]
[392816692,1761990621585,-459.04,0.00013699,2]
[392816693,1761990621613,-200.0,0.00013699,2]
[392816694,1761990621642,-496.5027378,0.00013772,2]
[392816695,1761990621672,-300.0,0.00013799,2]
[392816696,1761990621700,-166.49100929,0.000138,2]
[392816697,1761990621728,-250.0,0.00013891,2]
[392816698,1761990621760,-389.0,0.00014041,2]
[392816699,1761990621791,-168.0,0.00014354,2]
[392816700,1761990621819,-221.54267052,0.00014374,2]
[392816701,1761990621850,-168.0,0.00014385,2]
[392816702,1761990621877,-150.0,0.000144,2]
[392816703,1761990621909,-16.66716478,0.000144,2]
[392816704,1761990622164,-284.12283522,0.000144,2]
[392816705,1761990622212,-176.74,0.000144,2]
[392816706,1761990622241,-168.88,0.000144,2]
[392816707,1761990622270,-168.88,0.000144,2]
[392816708,1761990622302,-176.74,0.000144,2]
[392816709,1761990622342,-697.96,0.000144,2]
[392816710,1761990622374,-176.74,0.000144,2]
[392816711,1761990622405,-150.0,0.000144,2]
[392816712,1761990622438,-176.74,0.000144,2]
[392816713,1761990622468,-176.74,0.000144,2]
[392816714,1761990622496,-150.0,0.000144,2]
[392816715,1761990622528,-176.74,0.000144,2]
[392816716,1761990622557,-176.74,0.000144,2]
[392816717,1761990622586,-151.66636816,0.00014413,2]
[392816718,1761990622618,-168.0,0.00014416,2]
[392816719,1761990622647,-168.0,0.00014421,2]
[392816720,1761990622675,-150.0,0.00014445,2]
[392816721,1761990622703,-322.6107,0.00014446,2]
[392816722,1761990622734,-541.37027117,0.00014446,2]
[392816723,1761990622763,-514.84070869,0.00014446,2]
[392816724,1761990622792,-250.0,0.00014446,2]
[392816725,1761990623175,-321.23390396,0.00014446,2]
[392816726,1761990623248,-178.76609604,0.00014446,2]
[392816727,1761990623277,-164.39279166,0.00014446,2]
[392816728,1761990623305,-500.0,0.00014446,2]
[392816729,1761990623333,-500.0,0.00014446,2]
[392816730,1761990623363,-500.0,0.00014446,2]
[392816731,1761990623411,-500.0,0.00014446,2]
[392816732,1761990623641,-500.0,0.00014446,2]
[392816733,1761990623671,-500.0,0.00014446,2]
[392816734,1761990623701,-500.0,0.00014446,2]
[392816735,1761990623728,-646.65982734,0.00014446,2]
[392816736,1761990623758,-500.0,0.00014446,2]
[392816737,1761990623904,-156.70841714,0.00014446,2]
[392816738,1761990623933,-500.0,0.00014446,2]
[392816739,1761990623960,-152.30214979,0.00014446,2]
[392816740,1761990623991,-235.02964706,0.00014446,2]
[392816741,1761990624019,-250.0,0.00014446,2]
[392816742,1761990624047,-535.90639727,0.00014446,2]
[392816743,1761990624077,-211.11556816,0.00014446,2]
[392816744,1761990624105,-250.0,0.00014446,2]
[392816745,1761990624133,-151.0,0.00014446,2]
[392816746,1761990624160,-205.48895127,0.00014446,2]
[392816747,1761990624188,-250.0,0.00014446,2]
[392816748,1761990624215,-248.71531821,0.00014446,2]
[392816749,1761990624242,-908.30275864,0.00014453,2]
[392816750,1761990624270,-500.0,0.00014454,2]
[392816751,1761990624299,-390.87158492,0.00014454,2]
[392816752,1761990624450,-109.12841508,0.00014454,2]
[392816753,1761990624486,-500.0,0.00014454,2]
[392816754,1761990624514,-509.70539372,0.00014454,2]
[392816755,1761990624542,-523.84,0.00014454,2]
[392816756,1761990624574,-500.0,0.00014454,2]
[392816757,1761990624606,-500.0,0.00014454,2]
[392816758,1761990624637,-500.0,0.00014454,2]
[392816759,1761990624669,-500.0,0.00014454,2]
[392816760,1761990624699,-500.0,0.00014454,2]
[392816761,1761990624730,-500.0,0.00014454,2]
[392816762,1761990624760,-159.35705623,0.00014454,2]
[392816763,1761990625261,-500.0,0.00014454,2]
[392816764,1761990625294,-500.0,0.00014454,2]
[392816765,1761990625329,-500.0,0.00014454,2]
[392816766,1761990625362,-500.0,0.00014454,2]
[392816767,1761990625398,-500.0,0.00014454,2]
[392816768,1761990625431,-500.0,0.00014454,2]
[392816769,1761990625460,-552.16510927,0.00014454,2]
[392816770,1761990625495,-222.3389287,0.00014454,2]
[392816771,1761990625527,-460.68513716,0.00014454,2]
[392816772,1761990625559,-168.31792519,0.00014454,2]
[392816773,1761990625592,-282.3436518,0.00014454,2]
[392816774,1761990625817,-648.556539,0.00014454,2]
[392816775,1761990625849,-500.0,0.00014454,2]
[392816776,1761990625880,-399.08,0.00014454,2]
[392816777,1761990625910,-500.0,0.00014454,2]
[392816778,1761990625940,-500.0,0.00014454,2]
[392816779,1761990625970,-353.26039739,0.00014454,2]
[392816780,1761990626000,-500.0,0.00014454,2]
[392816781,1761990626031,-607.13533776,0.00014454,2]
[392816782,1761990626057,-183.57032361,0.00014454,2]
[392816785,1761990626998,-215.79980123,0.00013598,2]
[392816786,1761990627007,-210.5519191,0.00014455,2]
[392816787,1761990627020,-607.13533776,0.00014455,2]
[392816788,1761990627037,-183.57032361,0.00014455,2]
[392816789,1761990627050,-1616.80480448,0.00014455,2]
[392816790,1761990627095,-10000.01,0.00014455,2]
[392816791,1761990627144,-10000.01,0.00014455,2]
[392816792,1761990627214,-10000.01,0.00014455,2]
[392816793,1761990627228,-10000.01,0.00014455,2]
[392816794,1761990627242,-10000.01,0.00014455,2]
[392816795,1761990627275,-10000.01,0.00014455,2]
[392816797,1761990629800,-10000.01,0.00014455,2]
[392816798,1761990630021,-10000.01,0.00014455,2]
[392816799,1761990630124,-10000.01,0.00014455,2]
[392816800,1761990630234,-10000.01,0.00014455,2]
[392816807,1761990631799,-2804.636414,0.00014455,2]
[392816808,1761990631901,-21681.50132721,0.00014455,2]
[392816809,1761990631956,-280609.38231431,0.00014455,2]
[392816810,1761990631967,-9496.69618088,0.00014455,2]
[392816811,1761990631977,-500.0,0.00014473,2]
[392816812,1761990631986,-151.66636812,0.00014474,2]
[392816813,1761990631995,-168.0,0.00014513,2]
[392816814,1761990632005,-893.09678367,0.00014525,2]
[392816816,1761990632014,-151.66636812,0.00014535,2]
[392816817,1761990632023,-168.0,0.0001454,2]
[392816819,1761990632032,-151.66636812,0.00014596,2]
[392816821,1761990632042,-176.74,0.000146,2]
[392816824,1761990632051,-150.0,0.000146,2]
[392816825,1761990632060,-311.0,0.00014632,2]
[392816827,1761990632070,-151.66636812,0.00014657,2]
[392816829,1761990632079,-151.66636812,0.00014717,2]
[392816831,1761990632088,-168.0,0.00014718,2]
[392816834,1761990632097,-221.6410156,0.00014765,2]
[392816836,1761990632107,-151.66636812,0.00014778,2]
[392816837,1761990632116,-151.66636812,0.00014839,2]
[392816840,1761990632125,-1491.16951,0.0001485,2]
[392816842,1761990632134,-311.0,0.00014854,2]
[392816844,1761990632144,-476.65,0.00014893,2]
[392816845,1761990632153,-151.0,0.00014896,2]
[392816848,1761990632162,-783.11,0.000149,2]
[392816850,1761990632171,-151.0,0.00014903,2]
[392816851,1761990632181,-151.0,0.00014908,2]
[392816854,1761990632190,-151.0,0.00014912,2]
[392816856,1761990632200,-300.0,0.00014959,2]
[392816859,1761990632209,-195.0,0.00014959,2]
[392816862,1761990632218,-300.0,0.00014959,2]
[392816865,1761990632227,-250.0,0.00014959,2]
[392816868,1761990632236,-300.0,0.00014959,2]
[392816871,1761990632245,-193.77396753,0.00014959,2]
[392816874,1761990632254,-2500.0,0.00014959,2]
[392816876,1761990632263,-311.0,0.00014965,2]
[392816877,1761990632272,-1014.52,0.00014991,2]
[392816879,1761990632281,-533.88981491,0.00014994,2]
[392816881,1761990632290,-151.0,0.00014996,2]
[392816883,1761990632299,-151.0,0.00014997,2]
[392816885,1761990632308,-500.0,0.00014998,2]
[392816887,1761990632317,-500.0,0.00014998,2]
[392816889,1761990632327,-641.3407631,0.00014998,2]
[392816891,1761990632336,-2050.45779052,0.00014999,2]
[392816893,1761990632346,-234.24851226,0.00014999,2]
[392816895,1761990632355,-71700.01654344,0.00014999,2]
[392816897,1761990632366,-29408.27614989,0.00014999,2]
[392816967,1761990637787,-151.66636812,0.000149,2]
[392816968,1761990637796,-151.0,0.00014906,2]
[392816969,1761990637805,-23132.76322469,0.00014999,2]
[392816970,1761990637817,-37139.35984894,0.00014999,2]
[392816971,1761990637841,-52950.97496284,0.00014999,2]
[392816972,1761990637850,-329.26558568,0.00014999,2]
[392816973,1761990637860,-500.0,0.00014999,2]
[392816974,1761990637869,-190.78222034,0.00014999,2]
[392816975,1761990637878,-500.0,0.00014999,2]
[392816976,1761990637887,-3415.6283194,0.00014999,2]
[392816977,1761990637896,-163279.0531123,0.00014999,2]
[392816979,1761990637906,-949.0829499,0.00014999,2]
[392816981,1761990637915,-151.97796274,0.00014999,2]